[Event "FIDE Zonal 2.5 Open 2019"]
[Site "Montevideo"]
[Date "2019.04.17"]
[Round "7.22"]
[White "Romero, Robert"]
[Black "Moccero, Eduardo"]
[Result "0-1"]
[ECO "B01"]
[WhiteElo "1599"]
[BlackElo "1939"]
[Annotator "NA RC"]
[PlyCount "76"]
[EventDate "2019.04.13"]
[EventType "swiss"]
[EventCountry "URU"]
[SourceTitle "playchess.com"]
[Source "ChessBase"]
[SourceQuality "1"]
[TimeControl "40/5400+30:1800+30"]

{[%evp 19,73,-11,32767,-34,32767,32767,32767,32767,32767,7,0,4,74,26,9,0,32767,32767,-133,-123,-145,32767,-127,-151,-68,-63,-59,-54,-82,-503,-558,32767,32767,32767,32767,32767,32767,32767,-709,32767,-1198,-1471,-2165,-1910,-2599,-2868,-1408,-991,-1257,-2571,-29975,-29975,32767,-29993,-29993,-29995]} 1. e4 {[%emt 0:00:00]} d5 {[%emt 0:00:00]} 2. exd5 {[%emt 0:00:00]} Qxd5 {[%emt 0:00:00]} 3. Nc3 {[%emt 0:00:15]} Qa5 {[%emt 0:00:00]} 4. d4 {[%emt 0:00:22]} Nf6 {[%emt 0:00:00]} 5. Bd2 {[%emt 0:00:35]} c6 {[%emt 0:00:14]} 6. Bc4 {[%emt 0:02:57]} Bf5 {[%emt 0:01:16]} 7. Bb3 {[%emt 0:03:58]} e6 {[%emt 0:01:35]} 8. Nf3 {[%emt 0:03:08]} Nbd7 {[%emt 0:02:14] B01: Scandinavian Defence} (8... Bb4 9. Qe2 Nbd7 10. h3 Bg6 11. O-O-O O-O-O 12. Kb1 Nd5 13. Nxd5 exd5 14. Bxb4 Qxb4 15. Nh4 Rhe8 16. Qd2 Qxd2 17. Rxd2 Re7 18. Nxg6 hxg6 {0-1 (43) Nguyen,V (2422)-Megaranto,S (2536) Singapore 2008}) 9. Qe2 {[%emt 0:01:08]} Qc7 {[%emt 0:04:27]} 10. h3 {[%emt 0:05:21]} (10. Nh4 $5 {[%cal Rh4f5]} Bg6 11. O-O-O $11) 10... Be7 {[%emt 0:02:42]} 11. a3 {[%emt 0:04:13]} (11. Nh4 $11) 11... a5 $146 {[%emt 0:06:01]} ({Predecessor:} 11... h6 12. O-O-O O-O-O 13. g4 Bg6 14. Ne5 Nxe5 15. dxe5 Nd5 16. f4 Nxc3 17. Bxc3 Rxd1+ 18. Rxd1 {1-0 (35) Berend,E (2365)-Weber,J (2250) Dudelange 1997}) 12. Nh4 {[%emt 0:00:50]} Bg6 {[%emt 0:00:11]} 13. Nxg6 {[%emt 0:01:56]} hxg6 {[%emt 0:00:12]} 14. a4 {[%emt 0:02:38]} Rd8 {[%emt 0:07:22]} 15. O-O-O {[%emt 0:14:00]} O-O {[%emt 0:01:39]} (15... Nb6 $11) 16. g4 {[%emt 0:01:22]} Nb6 {[%emt 0:03:57]} 17. Bg5 {[%emt 0:03:34]} Nbd5 {[%emt 0:04:49]} 18. Qf3 {[%emt 0:04:28]} Nxc3 {[%emt 0:01:36]} 19. bxc3 {[%emt 0:01:22]} b5 {[%emt 0:02:28]} 20. h4 {[%emt 0:02:23] [#]} bxa4 $1 {[%emt 0:02:30]} 21. Bxa4 {[%emt 0:00:40]} Ba3+ {[%emt 0:02:50]} 22. Kd2 {[%emt 0:00:36]} c5 {[%emt 0:02:21]} 23. Bxf6 {[%emt 0:00:54]} gxf6 {[%emt 0:00:36]} 24. Qxf6 $2 {[%emt 0:01:37]} (24. h5 $15 cxd4 25. Ke1) 24... cxd4 {[%emt 0:01:34]} 25. Ke2 {[%emt 0:17:19]} Be7 {[%emt 0:03:46]} 26. Qf3 {[%emt 0:02:08]} Qc4+ {[%emt 0:00:53]} 27. Qd3 {[%emt 0:02:07]} Qxa4 {[%emt 0:01:23]} 28. Ra1 {[%emt 0:01:05]} Qc6 {[%emt 0:02:15]} 29. Rh3 {[%emt 0:01:47]} dxc3 {[%emt 0:02:04]} 30. Qe3 {[%emt 0:02:05]} Rd2+ {[%emt 0:02:45]} 31. Ke1 {[%emt 0:00:27]} Qg2 {[%emt 0:01:09]} 32. Qg3 {[%emt 0:06:22]} Qxg3 {[%emt 0:00:59]} 33. Rxg3 {[%emt 0:00:14]} Rxc2 {[%emt 0:00:11]} 34. Rxa5 {[%emt 0:00:40]} Rb8 {[%emt 0:00:40]} 35. Ra1 {[%emt 0:00:19]} Rbb2 {[%emt 0:02:21]} 36. g5 {[%emt 0:01:21]} Rxf2 {[%emt 0:01:05]} 37. h5 {[%emt 0:01:29]} Rh2 {[%emt 0:02:14]} 38. Ra8+ {[%emt 0:00:37]} Bf8 {[%emt 0:00:42]} 0-1

[Event "FIDE Zonal 2.5 Open 2019"]
[Site "Montevideo"]
[Date "2019.04.17"]
[Round "7.23"]
[White "Campora, Edgardo"]
[Black "Pinero, Ismael"]
[Result "0-1"]
[ECO "B33"]
[WhiteElo "1705"]
[BlackElo "1872"]
[Annotator "NA RC"]
[PlyCount "74"]
[EventDate "2019.04.13"]
[EventType "swiss"]
[EventCountry "URU"]
[SourceTitle "playchess.com"]
[Source "ChessBase"]
[SourceQuality "1"]
[TimeControl "40/5400+30:1800+30"]

1. e4 {[%emt 0:00:00]} c5 {[%emt 0:38:13]} 2. Nf3 {[%emt 0:00:23]} Nc6 {[%emt 0:00:31]} 3. d4 {[%emt 0:01:31]} cxd4 {[%emt 0:00:02]} 4. Nxd4 {[%emt 0:00:07]} Nf6 {[%emt 0:00:20]} 5. Nc3 {[%emt 0:00:06]} e5 {[%emt 0:00:19]} 6. Ndb5 {[%emt 0:01:20]} d6 {[%emt 0:00:01]} 7. Bg5 {[%emt 0:00:23]} a6 {[%emt 0:00:02]} 8. Na3 {[%emt 0:00:07]} b5 {[%emt 0:00:28]} 9. Bxf6 {[%emt 0:01:48]} gxf6 {[%emt 0:00:03]} 10. Nd5 {[%emt 0:00:09]} Bg7 {[%emt 0:00:13]} 11. Bd3 {[%emt 0:01:20]} Ne7 {[%emt 0:00:35] [#]} 12. Nxe7 $1 {[%emt 0:05:33]} Qxe7 {[%emt 0:00:13]} 13. c3 {[%emt 0:03:12]} f5 {[%emt 0:00:52]} 14. exf5 {[%emt 0:08:43] B33: Sicilian: Pelikan and Sveshnikov Variations} (14. Nc2 f4 15. Qh5 h6 16. Nb4 Be6 17. Nxa6 O-O 18. Nb4 f5 19. O-O fxe4 20. Bxe4 Rac8 21. Rad1 Rc4 22. Qg6 Rxe4 23. Qxe4 {1-0 (40) Caruana,F (2817)-Kamsky,G (2659) Saint Louis 2017}) 14... e4 {[%emt 0:00:28]} 15. Be2 {[%emt 0:00:04]} Bb7 {[%emt 0:01:11]} (15... O-O $11 {remains equal.}) 16. Nc2 {[%emt 0:01:03]} d5 {[%emt 0:00:35]} 17. O-O {[%emt 0:10:04]} O-O {[%emt 0:00:43]} 18. Re1 {[%emt 0:08:53]} Be5 $146 {[%emt 0:00:57]} ({You set blue moves yourself with the critical opening position annotation.:} 18... Rad8 19. Bg4 Qg5 20. Re3 Be5 21. Rh3 f6 22. Nd4 Bc8 23. Nc6 {1-0 (45) Namyslo,H (2298)-Guski,D (2090) Schwaebisch Gmuend 2003}) (18... b4 $14) 19. f3 $2 {[%emt 0:05:19]} (19. a4 $16) 19... Qh4 {[%emt 0:07:02]} 20. g3 {[%emt 0:00:43]} Bxg3 {[%emt 0:02:06]} 21. hxg3 {[%emt 0:00:06]} Qxg3+ {[%emt 0:00:07]} 22. Kh1 {[%emt 0:00:05]} Qh3+ {[%emt 0:00:27]} 23. Kg1 {[%emt 0:00:06]} Kh8 {[%emt 0:00:31]} 24. Bf1 {[%emt 0:07:04]} Qg3+ {[%emt 0:02:09]} 25. Bg2 {[%emt 0:02:35] [#]} Rg8 $1 {[%emt 0:01:06]} 26. Qd4+ {[%emt 0:05:24]} Rg7 {[%emt 0:00:29]} 27. Re2 {[%emt 0:07:52]} exf3 28. Rf2 fxg2 {[%emt 0:07:33]} 29. Ne1 {[%emt 0:00:33]} f6 {[%emt 0:00:09]} 30. Rxg2 {[%emt 0:00:07]} Qe5 {[%emt 0:00:12]} 31. Rxg7 {[%emt 0:12:33]} Kxg7 32. Qb6 (32. Ng2 $17 {keeps fighting.}) 32... Kh8 {[%emt 0:11:28]} 33. Qxb7 $2 {[%emt 0:01:43]} (33. Ng2 $19 Rg8 34. Rf1) 33... Rg8+ {[%emt 0:00:05]} 34. Kf2 {[%emt 0:00:09]} Qg3+ {[%emt 0:01:39]} 35. Ke2 {[%emt 0:00:15]} Re8+ {[%emt 0:00:19]} 36. Kd2 {[%emt 0:00:33]} Qf2+ {[%emt 0:02:52]} 37. Kd3 {[%emt 0:00:05]} Re3+ {[%emt 0:00:15]} 0-1

[Event "FIDE Zonal 2.5 Open 2019"]
[Site "Montevideo"]
[Date "2019.04.17"]
[Round "7.25"]
[White "Prieto Perez, Rodrigo"]
[Black "Lanaro, Emilio"]
[Result "0-1"]
[ECO "B90"]
[WhiteElo "2037"]
[BlackElo "1694"]
[Annotator "NA RC"]
[PlyCount "44"]
[EventDate "2019.04.13"]
[EventType "swiss"]
[EventCountry "URU"]
[SourceTitle "playchess.com"]
[Source "ChessBase"]
[SourceQuality "1"]
[TimeControl "40/5400+30:1800+30"]

1. e4 {[%emt 0:00:00]} c5 {[%emt 0:00:00]} 2. Nf3 {[%emt 0:00:00]} d6 {[%emt 0:00:00]} 3. d4 {[%emt 0:00:00]} cxd4 {[%emt 0:00:00]} 4. Nxd4 {[%emt 0:00:02]} Nf6 {[%emt 0:00:00]} 5. Nc3 {[%emt 0:00:16]} a6 {[%emt 0:00:00]} 6. Be3 {[%emt 0:03:04]} e5 {[%emt 0:00:07]} 7. Nb3 {[%emt 0:01:12]} Be6 {[%emt 0:01:10]} 8. Nd5 {[%emt 0:02:33]} Nxd5 {[%emt 0:03:31]} 9. exd5 {[%emt 0:00:13]} Bf5 {[%emt 0:00:44]} 10. Be2 {[%emt 0:05:13]} Be7 {[%emt 0:00:48]} 11. O-O {[%emt 0:01:40]} O-O {[%emt 0:00:17]} 12. Bd3 {[%emt 0:06:02] B92: Sicilian Najdorf: 6 Be2} (12. Qd2 Qc7 13. c4 a5 14. f4 exf4 15. Bxf4 Bg6 16. Nd4 Na6 17. Nb5 Qd8 18. Bd3 Qb6+ 19. Kh1 Rfe8 {½-½ (91) Buscara,S (2432)-Martinez Alcantara,J (2561) Barcelona 2018}) 12... Bg6 $146 {[%emt 0:00:37]} ({Predecessor:} 12... Bxd3 13. Qxd3 Nd7 14. f4 Rc8 15. Rad1 Bf6 16. c3 Re8 17. f5 Bg5 18. Nd2 Bxe3+ 19. Qxe3 Nf6 20. Ne4 Nxe4 21. Qxe4 {½-½ (21) Khworostinin,G (2383)-Cherniakhovsky,P (2237) Alushta 1999}) 13. Bxg6 {[%emt 0:01:02]} hxg6 {[%emt 0:00:07]} 14. Qg4 {[%emt 0:07:36]} Nd7 {[%emt 0:04:49]} 15. c4 {[%emt 0:05:20]} f5 {[%emt 0:13:59]} (15... b5 $11) 16. Qxg6 {[%emt 0:11:54]} Rf6 {[%emt 0:01:53]} 17. Qh5 {[%emt 0:01:28]} f4 {[%emt 0:01:00]} 18. Bd2 {[%emt 0:00:18]} Rh6 {[%emt 0:01:44]} 19. Qf3 {[%emt 0:02:11]} Kf7 {[%emt 0:06:14]} 20. Bc3 {[%emt 0:06:01]} Qh8 {[%emt 0:02:19]} 21. h3 {[%emt 0:00:22]} g5 {[%emt 0:02:05]} 22. g4 $19 {[%emt 0:07:52]} (22. Qg4 $14 Qc8 23. Rfe1) 22... Rxh3 {[%emt 0:00:32]} 0-1

[Event "FIDE Zonal 2.5 Open 2019"]
[Site "Montevideo"]
[Date "2019.04.17"]
[Round "7.26"]
[White "Palacio, Enzo"]
[Black "Avedisian, Alexander"]
[Result "1-0"]
[ECO "B27"]
[WhiteElo "1745"]
[BlackElo "1898"]
[Annotator "NA RC"]
[PlyCount "59"]
[EventDate "2019.04.13"]
[EventType "swiss"]
[EventCountry "URU"]
[SourceTitle "playchess.com"]
[Source "ChessBase"]
[SourceQuality "1"]
[TimeControl "40/5400+30:1800+30"]

1. e4 {[%emt 0:00:00]} c5 {[%emt 0:00:00]} 2. Nf3 {[%emt 0:00:00]} g6 {[%emt 0:00:00]} 3. d4 {[%emt 0:00:00]} cxd4 {[%emt 0:00:00]} 4. Qxd4 {[%emt 0:00:00]} Nf6 {[%emt 0:00:00]} 5. Nc3 {[%emt 0:00:00]} Nc6 {[%emt 0:00:09]} 6. Qa4 {[%emt 0:00:00]} d6 {[%emt 0:01:40]} 7. e5 {[%emt 0:00:00]} Ng4 {[%emt 0:05:59] B27: Sicilian: 2 Nf3, unusual Black 2nd moves} (7... dxe5 8. Nxe5 Bd7 9. Nxd7 Qxd7 10. Be2 Bg7 11. O-O O-O 12. Rd1 Qf5 13. Bd3 Qh5 14. Qb5 Qxb5 15. Bxb5 Nb4 16. Ba4 {1-0 (60) Guseinov,G (2664)-Gordievsky,D (2614) St Petersburg 2018}) 8. exd6 {[%emt 0:00:00]} exd6 {[%emt 0:01:29]} 9. Bb5 {[%emt 0:00:01]} Bd7 {[%emt 0:07:21]} 10. O-O {[%emt 0:00:09]} Be7 $146 {[%emt 0:00:48]} ({Predecessor:} 10... Bg7 11. Bg5 f6 12. Bf4 Nge5 13. Qe4 O-O 14. Rad1 Bf5 15. Qd5+ {1-0 (33) Ferrante,M (2260)-Nielsen,L (1837) Horsens 2017}) 11. Bxc6 {[%emt 0:12:17]} bxc6 {[%emt 0:00:14]} 12. h3 {[%emt 0:00:25]} Ne5 {[%emt 0:15:34]} 13. Nxe5 {[%emt 0:00:06]} dxe5 {[%emt 0:05:49]} 14. Bh6 {[%emt 0:01:49]} Bf8 {[%emt 0:02:05]} (14... Qc7 $16 {might work better.}) 15. Qe4 {[%emt 0:00:54]} f6 {[%emt 0:01:07]} 16. Bxf8 Kxf8 17. f4 {[%emt 0:03:06]} exf4 {[%emt 0:07:35]} (17... Qb6+ $16 18. Kh1 Bf5) 18. Qxf4 {[%emt 0:02:02]} Kg7 {[%emt 0:13:37]} 19. Rad1 {[%emt 0:07:49]} Rf8 20. Ne4 {[%emt 0:00:26]} f5 {[%emt 0:10:07]} 21. Nc5 $18 {[%emt 0:00:06]} Rf7 {[%emt 0:03:56]} 22. Qd4+ {[%emt 0:00:07]} Kg8 {[%emt 0:05:13]} 23. Nxd7 {[%emt 0:00:30]} Qg5 {[%emt 0:03:12]} 24. Rfe1 {[%emt 0:03:02]} f4 {[%emt 0:02:27]} 25. Re5 {[%emt 0:01:04]} Qg3 {[%emt 0:03:52]} 26. Rde1 Raf8 27. Nxf8 {[%emt 0:02:27]} f3 {[%emt 0:01:23]} 28. Qf2 {[%emt 0:00:10]} Qf4 {[%emt 0:02:33]} 29. Ne6 {[%emt 0:03:01]} Qb4 30. Ng5 1-0

[Event "FIDE Zonal 2.5 Open 2019"]
[Site "Montevideo"]
[Date "2019.04.17"]
[Round "7.27"]
[White "Fein, Jorge"]
[Black "Reolon, Victor"]
[Result "0-1"]
[ECO "B90"]
[WhiteElo "1648"]
[BlackElo "1659"]
[Annotator "NA RC"]
[PlyCount "72"]
[EventDate "2019.04.13"]
[EventType "swiss"]
[EventCountry "URU"]
[SourceTitle "playchess.com"]
[Source "ChessBase"]
[SourceQuality "1"]
[TimeControl "40/5400+30:1800+30"]

1. e4 {[%emt 0:00:00]} c5 {[%emt 0:00:00]} 2. Nf3 {[%emt 0:00:00]} d6 {[%emt 0:00:00]} 3. d4 {[%emt 0:02:28]} cxd4 {[%emt 0:00:00]} 4. Nxd4 {[%emt 0:00:02]} Nf6 {[%emt 0:00:11]} 5. Nc3 {[%emt 0:01:18]} a6 {[%emt 0:00:08]} 6. Bc4 {[%emt 0:01:30]} e6 {[%emt 0:00:16]} 7. O-O {[%emt 0:00:24]} Be7 {[%emt 0:00:30]} 8. h3 {[%emt 0:00:29]} O-O 9. Kh1 {[%emt 0:01:56]} Nc6 {[%emt 0:00:41]} 10. Nxc6 {[%emt 0:00:51]} bxc6 {[%emt 0:00:10]} 11. Re1 {[%emt 0:02:29]} d5 {[%emt 0:19:56]} 12. Bd3 {[%emt 0:04:53]} d4 {[%emt 0:09:04]} 13. Ne2 {[%emt 0:03:31]} c5 {[%emt 0:08:20]} 14. e5 {[%emt 0:04:39]} Nd5 {[%emt 0:01:03]} 15. Ng3 {[%emt 0:05:45]} f5 {[%emt 0:04:32]} 16. f4 {[%emt 0:03:41]} Bh4 {[%emt 0:02:08]} 17. Kh2 {[%emt 0:01:29]} Qe8 {[%emt 0:02:30]} 18. Rf1 {[%emt 0:11:03]} Bb7 {[%emt 0:02:59]} 19. Qe2 {[%emt 0:12:11]} Rc8 {[%emt 0:06:29]} 20. Bxa6 {[%emt 0:04:21]} Bxa6 {[%emt 0:09:41]} 21. Qxa6 {[%emt 0:00:20]} c4 {[%emt 0:00:35]} 22. Qa3 {[%emt 0:03:05]} c3 {[%emt 0:01:14]} 23. Rf3 {[%emt 0:01:48]} Qb5 {[%emt 0:04:12]} 24. bxc3 {[%emt 0:04:05]} Rxc3 {[%emt 0:05:06]} 25. Rxc3 {[%emt 0:00:36]} Nxc3 {[%emt 0:00:09]} 26. Qd6 {[%emt 0:03:47]} Bxg3+ {[%emt 0:00:13]} 27. Kxg3 {[%emt 0:00:51]} Ne4+ {[%emt 0:00:02]} 28. Kh2 {[%emt 0:00:54]} Nxd6 {[%emt 0:00:15]} 29. exd6 {[%emt 0:00:01]} Qf1 {[%emt 0:00:50]} 30. a4 {[%emt 0:01:51]} Rd8 {[%emt 0:00:35]} 31. Rb1 {[%emt 0:02:32]} Rxd6 {[%emt 0:00:44]} 32. Rb8+ {[%emt 0:00:17]} Kf7 {[%emt 0:00:12]} 33. Rb7+ {[%emt 0:00:02]} Kg6 {[%emt 0:00:13]} 34. Ba3 {[%emt 0:01:26]} Qxf4+ {[%emt 0:00:11]} 35. Kg1 {[%emt 0:00:30]} Qe3+ {[%emt 0:00:06]} 36. Kh1 {[%emt 0:03:59]} Qxa3 0-1

[Event "FIDE Zonal 2.5 Open 2019"]
[Site "Montevideo"]
[Date "2019.04.18"]
[Round "8.5"]
[White "Lopez Azambuja, Nicolas"]
[Black "Peralta, Fernando"]
[Result "0-1"]
[ECO "E11"]
[WhiteElo "2328"]
[BlackElo "2572"]
[Annotator "ChessBase"]
[PlyCount "70"]
[EventDate "2019.04.13"]
[EventType "swiss"]
[EventCountry "URU"]
[SourceTitle "playchess.com"]
[Source "ChessBase"]
[SourceQuality "1"]
[TimeControl "40/5400+30:1800+30"]

1. d4 {[%emt 0:00:00]} Nf6 {[%emt 0:00:00]} 2. c4 {[%emt 0:00:00]} e6 {[%emt 0:00:00]} 3. Nf3 {[%emt 0:00:00]} Bb4+ {[%emt 0:00:00]} 4. Nbd2 {[%emt 0:00:22]} O-O {[%emt 0:00:08]} 5. g3 {[%emt 0:00:46]} d5 {[%emt 0:01:41]} 6. Qc2 {[%emt 0:00:58]} b6 {[%emt 0:01:08]} 7. Bg2 {[%emt 0:02:05]} Bb7 {[%emt 0:00:42]} 8. O-O {[%emt 0:07:32]} Nbd7 {[%emt 0:00:27]} 9. b3 {[%emt 0:02:29]} Re8 {[%emt 0:03:48]} 10. Bb2 {[%emt 0:00:42]} Rc8 {[%emt 0:01:49]} 11. Rac1 {[%emt 0:01:38]} Bd6 {[%emt 0:14:35]} 12. Rfd1 {[%emt 0:10:37]} Qe7 {[%emt 0:00:37]} 13. Qb1 {[%emt 0:09:14]} Nf8 {[%emt 0:25:52]} 14. Qa1 {[%emt 0:10:26]} a5 {[%emt 0:05:48]} 15. a3 {[%emt 0:06:04]} Red8 {[%emt 0:09:14]} 16. Nh4 {[%emt 0:09:25]} Ng6 {[%emt 0:04:58]} 17. Nxg6 {[%emt 0:01:01]} hxg6 {[%emt 0:00:05]} 18. Re1 {[%emt 0:00:40]} c5 {[%emt 0:08:26]} 19. dxc5 {[%emt 0:13:43]} Bxc5 {[%emt 0:00:51]} 20. e3 {[%emt 0:02:09]} dxc4 {[%emt 0:02:19]} 21. Bxb7 {[%emt 0:01:07]} Qxb7 {[%emt 0:00:11]} 22. Nxc4 {[%emt 0:00:17]} Ne4 {[%emt 0:01:42]} 23. h4 {[%emt 0:09:23]} b5 {[%emt 0:00:57]} 24. Nxa5 {[%emt 0:00:28]} Qd5 {[%emt 0:00:10]} 25. Bd4 {[%emt 0:02:37]} Nd2 {[%emt 0:05:48]} 26. Red1 {[%emt 0:00:17]} Bxd4 {[%emt 0:02:39]} 27. exd4 {[%emt 0:00:48]} Nf3+ {[%emt 0:00:19]} 28. Kg2 {[%emt 0:05:39]} Nxh4+ {[%emt 0:01:18]} 29. Kf1 {[%emt 0:01:28]} Qh1+ {[%emt 0:04:22]} 30. Ke2 {[%emt 0:00:04]} Qe4+ {[%emt 0:00:14]} 31. Kf1 {[%emt 0:00:04]} Qh1+ {[%emt 0:01:42]} 32. Ke2 {[%emt 0:00:04]} Qf3+ {[%emt 0:00:03]} 33. Kf1 {[%emt 0:00:11]} Nf5 {[%emt 0:00:31]} 34. Kg1 {[%emt 0:00:25]} Rxc1 {[%emt 0:01:17]} 35. Rxc1 {[%emt 0:00:59]} Nxd4 0-1

[Event "FIDE Zonal 2.5 Open 2019"]
[Site "Montevideo"]
[Date "2019.04.18"]
[Round "8.9"]
[White "Restuccia, Francisco"]
[Black "Muniz, Rafael"]
[Result "0-1"]
[ECO "B92"]
[WhiteElo "2100"]
[BlackElo "2257"]
[Annotator "ChessBase"]
[PlyCount "70"]
[EventDate "2019.04.13"]
[EventType "swiss"]
[EventCountry "URU"]
[SourceTitle "playchess.com"]
[Source "ChessBase"]
[SourceQuality "1"]
[TimeControl "40/5400+30:1800+30"]

1. e4 {[%emt 0:00:12]} c5 {[%emt 0:00:00]} 2. Nf3 {[%emt 0:00:11]} d6 {[%emt 0:00:00]} 3. d4 {[%emt 0:00:07]} cxd4 {[%emt 0:00:00]} 4. Nxd4 {[%emt 0:00:08]} Nf6 {[%emt 0:00:00]} 5. Nc3 {[%emt 0:00:05]} a6 {[%emt 0:00:00]} 6. Be2 {[%emt 0:00:06]} e5 {[%emt 0:00:16]} 7. Nb3 {[%emt 0:00:06]} Be7 {[%emt 0:01:11]} 8. O-O {[%emt 0:00:10]} O-O {[%emt 0:02:46]} 9. Kh1 {[%emt 0:00:14]} b6 {[%emt 0:00:48]} 10. Be3 {[%emt 0:02:35]} Bb7 {[%emt 0:00:59]} 11. f3 {[%emt 0:00:10]} b5 {[%emt 0:02:15]} 12. Qe1 {[%emt 0:03:49]} Nbd7 {[%emt 0:02:01]} 13. a3 {[%emt 0:00:27]} Rc8 {[%emt 0:02:07]} 14. Rd1 {[%emt 0:18:06]} Qc7 {[%emt 0:04:02]} 15. Qf2 {[%emt 0:02:20]} d5 {[%emt 0:17:09]} 16. Nxd5 {[%emt 0:26:42]} Nxd5 {[%emt 0:07:29]} 17. exd5 {[%emt 0:00:14]} Nf6 {[%emt 0:00:25]} 18. c4 {[%emt 0:07:10]} bxc4 {[%emt 0:01:06]} 19. Bb6 {[%emt 0:00:07]} Qd6 {[%emt 0:04:14]} 20. Na5 {[%emt 0:03:05]} Bxd5 {[%emt 0:03:02]} 21. Bxc4 {[%emt 0:04:41]} Qe6 {[%emt 0:00:57]} 22. Bd3 {[%emt 0:06:05]} Bd8 {[%emt 0:06:33]} 23. Bxd8 {[%emt 0:00:49]} Rfxd8 {[%emt 0:00:25]} 24. Rfe1 {[%emt 0:02:42]} e4 {[%emt 0:09:39]} 25. fxe4 {[%emt 0:11:51]} Bxe4 {[%emt 0:03:13]} 26. Bxe4 {[%emt 0:03:18]} Nxe4 {[%emt 0:00:18]} 27. Rxd8+ {[%emt 0:01:21]} Rxd8 {[%emt 0:00:08]} 28. Qe2 {[%emt 0:00:31]} Re8 {[%emt 0:00:57]} 29. Qxe4 {[%emt 0:03:57]} Qxe4 {[%emt 0:00:08]} 30. Rxe4 {[%emt 0:00:02]} Rxe4 {[%emt 0:00:16]} 31. Kg1 {[%emt 0:00:01]} Re2 {[%emt 0:01:41]} 32. b3 {[%emt 0:00:17]} Rc2 {[%emt 0:01:09]} 33. h3 {[%emt 0:00:47]} Kf8 {[%emt 0:00:34]} 34. Kh2 {[%emt 0:00:18]} Rc3 {[%emt 0:01:10]} 35. Kg1 {[%emt 0:00:22]} Ke7 {[%emt 0:00:29]} 0-1

[Event "FIDE Zonal 2.5 Open 2019"]
[Site "Montevideo"]
[Date "2019.04.18"]
[Round "8.10"]
[White "Larrea, Manuel"]
[Black "Adasme Fredes, Mauricio"]
[Result "1-0"]
[ECO "B48"]
[WhiteElo "2230"]
[BlackElo "2086"]
[Annotator "ChessBase"]
[PlyCount "71"]
[EventDate "2019.04.13"]
[EventType "swiss"]
[EventCountry "URU"]
[SourceTitle "playchess.com"]
[Source "ChessBase"]
[SourceQuality "1"]
[TimeControl "40/5400+30:1800+30"]

1. e4 {[%emt 0:00:18]} c5 {[%emt 0:00:00]} 2. Nf3 {[%emt 0:00:25]} e6 {[%emt 0:00:00]} 3. d4 {[%emt 0:00:10]} cxd4 {[%emt 0:00:00]} 4. Nxd4 {[%emt 0:00:07]} Nc6 {[%emt 0:00:00]} 5. Nc3 {[%emt 0:00:14]} Qc7 {[%emt 0:00:00]} 6. Be3 {[%emt 0:00:11]} a6 {[%emt 0:00:01]} 7. Qf3 {[%emt 0:00:06]} b5 {[%emt 0:04:19]} 8. O-O-O {[%emt 0:04:06]} Bb7 {[%emt 0:00:52]} 9. Nxc6 {[%emt 0:10:23]} Bxc6 {[%emt 0:08:03]} 10. Bd3 {[%emt 0:01:52]} Nf6 {[%emt 0:00:51]} 11. Bd4 {[%emt 0:10:44]} Be7 {[%emt 0:04:35]} 12. Qg3 {[%emt 0:05:22]} Qxg3 {[%emt 0:03:39]} 13. hxg3 {[%emt 0:02:08]} b4 {[%emt 0:01:21]} 14. Ne2 {[%emt 0:03:44]} Nxe4 {[%emt 0:02:06]} 15. Bxg7 {[%emt 0:02:05]} Rg8 {[%emt 0:00:07]} 16. Bd4 {[%emt 0:00:27]} e5 {[%emt 0:07:05]} 17. Bxe4 {[%emt 0:07:31]} Bxe4 {[%emt 0:00:23]} 18. Bxe5 {[%emt 0:06:32]} Rc8 {[%emt 0:00:31]} 19. Nd4 {[%emt 0:08:03]} Rg5 {[%emt 0:03:02]} 20. Bf4 {[%emt 0:08:42]} Rgc5 {[%emt 0:00:46]} 21. Rd2 {[%emt 0:04:02]} Kf8 {[%emt 0:04:50]} 22. Bh6+ {[%emt 0:04:24]} Ke8 {[%emt 0:06:48]} 23. Re1 {[%emt 0:00:45]} Bd5 {[%emt 0:02:55]} 24. Nf5 {[%emt 0:08:36]} Be6 {[%emt 0:00:21]} 25. Ng7+ {[%emt 0:00:05]} Kd8 {[%emt 0:00:06]} 26. Rxe6 {[%emt 0:00:47]} fxe6 {[%emt 0:02:49]} 27. Nxe6+ {[%emt 0:00:05]} Ke8 {[%emt 0:00:12]} 28. Nxc5 {[%emt 0:00:07]} Rxc5 {[%emt 0:00:20]} 29. Bf4 {[%emt 0:00:12]} Ra5 {[%emt 0:00:22]} 30. Re2 {[%emt 0:02:00]} Kf7 {[%emt 0:00:17]} 31. Re5 {[%emt 0:02:30]} Rxa2 {[%emt 0:00:59]} 32. Kb1 {[%emt 0:00:14]} Ra4 {[%emt 0:00:06]} 33. b3 {[%emt 0:00:28]} Ra3 {[%emt 0:00:38]} 34. Rxe7+ {[%emt 0:00:11]} Kxe7 {[%emt 0:00:10]} 35. Bd2 {[%emt 0:00:01]} a5 {[%emt 0:01:21]} 36. Bc1 {[%emt 0:00:06]} 1-0